[Event "*** Titled Tuesday 3|2 Blitz (Late)"]
[Site "Chess.com"]
[Date "2016.11.01"]
[Round "4"]
[White "chito89"]
[Black "superjem123"]
[Result "1-0"]
[WhiteElo "2491"]
[BlackElo "2493"]
[TimeControl "180+2"]
[EndTime "17:49:50 PDT"]
[Termination "chito89 won by resignation"]

1. d4 {[%clk 0:03:02]} 1... Nf6 {[%clk 0:03:00.3]} 2. c4 {[%clk 0:03:02.3]} 2...
g6 {[%clk 0:03:01.4]} 3. Nc3 {[%clk 0:02:58.4]} 3... d5 {[%clk 0:03:02.2]} 4.
Nf3 {[%clk 0:02:59.3]} 4... Bg7 {[%clk 0:03:02.7]} 5. e3 {[%clk 0:02:59.4]} 5...
O-O {[%clk 0:02:57.9]} 6. cxd5 {[%clk 0:02:58.3]} 6... Nxd5 {[%clk 0:02:58.2]}
7. Bc4 {[%clk 0:02:59.7]} 7... Nxc3 {[%clk 0:02:58.2]} 8. bxc3 {[%clk
0:03:00.5]} 8... c5 {[%clk 0:02:59.3]} 9. O-O {[%clk 0:02:57]} 9... b6 {[%clk
0:02:19.9]} 10. Qe2 {[%clk 0:02:54.6]} 10... Bb7 {[%clk 0:02:17.9]} 11. Rd1
{[%clk 0:02:48.6]} 11... Qc7 {[%clk 0:02:18]} 12. e4 {[%clk 0:02:47.8]} 12...
Nc6 {[%clk 0:02:13.2]} 13. h4 {[%clk 0:02:36.3]} 13... Rad8 {[%clk 0:02:08.3]}
14. Be3 {[%clk 0:02:35.6]} 14... Bc8 {[%clk 0:01:44.6]} 15. dxc5 {[%clk
0:02:07.5]} 15... bxc5 {[%clk 0:01:43.9]} 16. Rxd8 {[%clk 0:01:52.1]} 16... Rxd8
{[%clk 0:01:42.9]} 17. Rd1 {[%clk 0:01:43.3]} 17... Rxd1+ {[%clk 0:01:36.1]} 18.
Qxd1 {[%clk 0:01:44.6]} 18... Na5 {[%clk 0:01:24.5]} 19. Qa4 {[%clk 0:01:14.2]}
19... Nxc4 {[%clk 0:01:22.4]} 20. Qe8+ {[%clk 0:01:11.5]} 20... Bf8 {[%clk
0:01:13.7]} 21. Bh6 {[%clk 0:01:12.7]} 1-0

[Event "*** Titled Tuesday 3|2 Blitz (Late)"]
[Site "Chess.com"]
[Date "2016.11.01"]
[Round "4"]
[White "GMMelik"]
[Black "wonderfultime"]
[Result "0-1"]
[WhiteElo "2380"]
[BlackElo "2704"]
[TimeControl "180+2"]
[EndTime "17:50:05 PDT"]
[Termination "wonderfultime won by resignation"]

1. e4 {[%clk 0:03:00.5]} 1... c5 {[%clk 0:03:00]} 2. Nf3 {[%clk 0:03:01.5]} 2...
d6 {[%clk 0:02:58.8]} 3. d4 {[%clk 0:03:02.3]} 3... cxd4 {[%clk 0:03:00.7]} 4.
Nxd4 {[%clk 0:03:04.2]} 4... Nf6 {[%clk 0:03:02.3]} 5. Nc3 {[%clk 0:03:05.4]}
5... g6 {[%clk 0:03:03.9]} 6. Be3 {[%clk 0:03:03.2]} 6... Bg7 {[%clk 0:03:05.2]}
7. f3 {[%clk 0:03:03.6]} 7... O-O {[%clk 0:03:06.6]} 8. Qd2 {[%clk 0:03:05]}
8... Nc6 {[%clk 0:03:08]} 9. O-O-O {[%clk 0:02:56.6]} 9... d5 {[%clk 0:03:08.8]}
10. Kb1 {[%clk 0:02:55.3]} 10... Nxd4 {[%clk 0:02:40.3]} 11. e5 {[%clk
0:02:55.1]} 11... Nf5 {[%clk 0:02:41.4]} 12. exf6 {[%clk 0:02:52.1]} 12... exf6
{[%clk 0:02:37.5]} 13. Nxd5 {[%clk 0:02:52.8]} 13... Nxe3 {[%clk 0:02:35.2]} 14.
Qxe3 {[%clk 0:02:52.9]} 14... Be6 {[%clk 0:02:35.4]} 15. Bc4 {[%clk 0:02:51.8]}
15... f5 {[%clk 0:02:36.6]} 16. Bb3 {[%clk 0:02:46]} 16... a5 {[%clk 0:01:34.2]}
17. Nc3 {[%clk 0:02:23.9]} 17... Qf6 {[%clk 0:01:24.2]} 18. Bxe6 {[%clk
0:02:24.5]} 18... fxe6 {[%clk 0:01:26.1]} 19. Rd6 {[%clk 0:02:25.3]} 19... Rfe8
{[%clk 0:01:14]} 20. Re1 {[%clk 0:02:25.7]} 20... Rad8 {[%clk 0:00:48.1]} 21.
Rb6 {[%clk 0:01:57.9]} 21... Qf7 {[%clk 0:00:41.9]} 22. g4 {[%clk 0:01:30.8]}
22... Bd4 {[%clk 0:00:41.1]} 0-1

[Event "*** Titled Tuesday 3|2 Blitz (Late)"]
[Site "Chess.com"]
[Date "2016.11.01"]
[Round "4"]
[White "Jahonas"]
[Black "BellJackson95"]
[Result "0-1"]
[WhiteElo "2154"]
[BlackElo "2247"]
[TimeControl "180+2"]
[EndTime "17:51:03 PDT"]
[Termination "BellJackson95 won by resignation"]

1. d4 {[%clk 0:02:47.7]} 1... Nf6 {[%clk 0:02:58.8]} 2. Nf3 {[%clk 0:02:47.6]}
2... c5 {[%clk 0:03:00.7]} 3. d5 {[%clk 0:02:48.4]} 3... e6 {[%clk 0:03:01.6]}
4. Nc3 {[%clk 0:02:49.7]} 4... d6 {[%clk 0:03:02.2]} 5. e4 {[%clk 0:02:50.3]}
5... exd5 {[%clk 0:03:04.1]} 6. exd5 {[%clk 0:02:50.8]} 6... Be7 {[%clk
0:03:02.7]} 7. h3 {[%clk 0:02:51.4]} 7... O-O {[%clk 0:03:04.6]} 8. Bd3 {[%clk
0:02:52.5]} 8... a6 {[%clk 0:03:06.5]} 9. a4 {[%clk 0:02:53.2]} 9... Re8 {[%clk
0:03:06.1]} 10. O-O {[%clk 0:02:54.2]} 10... Nbd7 {[%clk 0:03:05.9]} 11. Bf4
{[%clk 0:02:55]} 11... Nf8 {[%clk 0:03:06.7]} 12. Re1 {[%clk 0:02:55.3]} 12...
Ng6 {[%clk 0:03:08.6]} 13. Bh2 {[%clk 0:02:56.1]} 13... Bf8 {[%clk 0:03:09.1]}
14. Rxe8 {[%clk 0:02:55.3]} 14... Qxe8 {[%clk 0:03:11]} 15. Qd2 {[%clk
0:02:55.8]} 15... Bd7 {[%clk 0:03:12.2]} 16. Re1 {[%clk 0:02:56.1]} 16... Qb8
{[%clk 0:03:12.3]} 17. Ng5 {[%clk 0:02:52.9]} 17... b5 {[%clk 0:03:08.1]} 18.
axb5 {[%clk 0:02:51.6]} 18... axb5 {[%clk 0:03:10]} 19. Nce4 {[%clk 0:02:43.1]}
19... Nxe4 {[%clk 0:03:09.7]} 20. Bxe4 {[%clk 0:02:42.5]} 20... Qd8 {[%clk
0:02:54]} 21. h4 {[%clk 0:02:36.4]} 21... Be7 {[%clk 0:02:45]} 22. f4 {[%clk
0:02:34.8]} 22... f5 {[%clk 0:02:40.2]} 23. h5 {[%clk 0:02:11.9]} 23... fxe4
{[%clk 0:02:36.2]} 24. hxg6 {[%clk 0:02:10.8]} 24... hxg6 {[%clk 0:02:36.8]} 25.
Ne6 {[%clk 0:02:04]} 25... Bxe6 {[%clk 0:02:36.7]} 26. dxe6 {[%clk 0:02:04.6]}
26... d5 {[%clk 0:02:36.6]} 27. Rd1 {[%clk 0:01:59]} 27... d4 {[%clk 0:02:36]}
28. Qe2 {[%clk 0:02:00]} 28... e3 {[%clk 0:02:34.6]} 29. Qxb5 {[%clk 0:02:00.6]}
29... Rb8 {[%clk 0:02:35]} 30. Qd3 {[%clk 0:01:58.2]} 30... Rxb2 {[%clk
0:02:31.6]} 31. Qxg6 {[%clk 0:01:59]} 31... Qf8 {[%clk 0:02:26.5]} 32. Qe4
{[%clk 0:01:46]} 32... Qf6 {[%clk 0:02:22.4]} 33. f5 {[%clk 0:01:44]} 33... g6
{[%clk 0:02:16.7]} 34. Rf1 {[%clk 0:01:42.1]} 34... gxf5 {[%clk 0:02:13.8]} 35.
Qd3 {[%clk 0:01:17]} 35... Qxe6 {[%clk 0:01:57.4]} 36. Bf4 {[%clk 0:01:15.4]}
36... Bf6 {[%clk 0:01:46.2]} 37. Rf3 {[%clk 0:01:13.4]} 37... e2 {[%clk
0:01:41.2]} 38. Rg3+ {[%clk 0:01:11.5]} 38... Kf7 {[%clk 0:01:37]} 39. Bd2
{[%clk 0:01:08]} 39... Rb1+ {[%clk 0:01:29]} 40. Kh2 {[%clk 0:01:07.4]} 40...
Rd1 {[%clk 0:01:29.2]} 41. Qf3 {[%clk 0:01:04.5]} 41... Rxd2 {[%clk 0:01:26.7]}
0-1

[Event "*** Titled Tuesday 3|2 Blitz (Late)"]
[Site "Chess.com"]
[Date "2016.11.01"]
[Round "4"]
[White "jcibarra"]
[Black "uzbektiger95"]
[Result "0-1"]
[WhiteElo "2674"]
[BlackElo "2615"]
[TimeControl "180+2"]
[EndTime "17:51:04 PDT"]
[Termination "uzbektiger95 won by checkmate"]

1. e4 {[%clk 0:03:01.9]} 1... c5 {[%clk 0:03:01.3]} 2. Nf3 {[%clk 0:03:02.7]}
2... Nc6 {[%clk 0:03:03]} 3. d4 {[%clk 0:03:03.2]} 3... cxd4 {[%clk 0:03:04.9]}
4. Nxd4 {[%clk 0:03:05.1]} 4... g6 {[%clk 0:03:06.7]} 5. Nc3 {[%clk 0:03:06]}
5... Bg7 {[%clk 0:03:08.2]} 6. Be3 {[%clk 0:03:07.6]} 6... Nf6 {[%clk
0:03:09.9]} 7. Bc4 {[%clk 0:03:08.8]} 7... O-O {[%clk 0:03:11.6]} 8. Bb3 {[%clk
0:03:10.2]} 8... e6 {[%clk 0:03:12.7]} 9. O-O {[%clk 0:03:10.2]} 9... d5 {[%clk
0:03:13]} 10. exd5 {[%clk 0:03:11.8]} 10... Nxd5 {[%clk 0:03:13.6]} 11. Nxd5
{[%clk 0:03:12.4]} 11... exd5 {[%clk 0:03:14.8]} 12. c3 {[%clk 0:03:13.9]} 12...
Re8 {[%clk 0:03:10.7]} 13. Qd2 {[%clk 0:03:14.5]} 13... Ne5 {[%clk 0:03:03.7]}
14. Bh6 {[%clk 0:03:12.6]} 14... Ng4 {[%clk 0:03:00.7]} 15. Bxg7 {[%clk
0:03:11.5]} 15... Kxg7 {[%clk 0:03:02.6]} 16. h3 {[%clk 0:03:02.6]} 16... Nf6
{[%clk 0:03:01.5]} 17. Rfe1 {[%clk 0:02:59.5]} 17... Bd7 {[%clk 0:03:02.2]} 18.
Rad1 {[%clk 0:02:59.2]} 18... a6 {[%clk 0:03:01.9]} 19. Qg5 {[%clk 0:02:57.8]}
19... Qc7 {[%clk 0:02:46.4]} 20. Nc2 {[%clk 0:02:41.7]} 20... Bc6 {[%clk
0:02:46.4]} 21. Ne3 {[%clk 0:02:40.9]} 21... Re5 {[%clk 0:02:44.4]} 22. Qf4
{[%clk 0:02:34.2]} 22... Rae8 {[%clk 0:02:41.5]} 23. Rd4 {[%clk 0:02:24.8]}
23... a5 {[%clk 0:02:41.8]} 24. Red1 {[%clk 0:02:20.3]} 24... R8e6 {[%clk
0:02:39.8]} 25. Qf3 {[%clk 0:01:48.5]} 25... h6 {[%clk 0:02:36.1]} 26. Qf4
{[%clk 0:01:40.5]} 26... b6 {[%clk 0:02:35]} 27. Qg3 {[%clk 0:01:39]} 27... Qe7
{[%clk 0:02:32.8]} 28. Qf3 {[%clk 0:01:37.3]} 28... Rxe3 {[%clk 0:02:30.9]} 29.
fxe3 {[%clk 0:01:31.7]} 29... Rxe3 {[%clk 0:02:32.8]} 30. Qf1 {[%clk 0:01:26.6]}
30... Qe5 {[%clk 0:02:30.2]} 31. Qf4 {[%clk 0:01:21.9]} 31... Qe7 {[%clk
0:02:30.4]} 32. Rf1 {[%clk 0:01:16.5]} 32... Nh5 {[%clk 0:02:27.9]} 33. Qh4
{[%clk 0:01:09.9]} 33... Qe5 {[%clk 0:02:23.1]} 34. Qf2 {[%clk 0:01:08.3]} 34...
f5 {[%clk 0:02:21.2]} 35. Rdd1 {[%clk 0:00:52.8]} 35... Ng3 {[%clk 0:02:17]} 36.
Rfe1 {[%clk 0:00:49.2]} 36... Ne2+ {[%clk 0:02:16]} 37. Kh1 {[%clk 0:00:45.2]}
37... Rxh3+ {[%clk 0:02:11.6]} 38. gxh3 {[%clk 0:00:39.3]} 38... d4+ {[%clk
0:02:13]} 39. Qg2 {[%clk 0:00:35.4]} 39... Bxg2+ {[%clk 0:02:13.7]} 40. Kxg2
{[%clk 0:00:37.3]} 40... Qg3+ {[%clk 0:02:15]} 41. Kh1 {[%clk 0:00:32.7]} 41...
Qxh3# {[%clk 0:02:14.8]} 0-1

[Event "*** Titled Tuesday 3|2 Blitz (Late)"]
[Site "Chess.com"]
[Date "2016.11.01"]
[Round "4"]
[White "Maitreia"]
[Black "hermionegrangermagic"]
[Result "1-0"]
[WhiteElo "2500"]
[BlackElo "2236"]
[TimeControl "180+2"]
[EndTime "17:51:37 PDT"]
[Termination "Maitreia won by resignation"]

1. c4 {[%clk 0:03:02]} 1... e6 {[%clk 0:02:56.9]} 2. g3 {[%clk 0:03:02.9]} 2...
d5 {[%clk 0:02:57.1]} 3. Bg2 {[%clk 0:03:04.2]} 3... Nf6 {[%clk 0:02:57.5]} 4.
Nf3 {[%clk 0:03:04.5]} 4... Be7 {[%clk 0:02:57.5]} 5. O-O {[%clk 0:03:05.5]}
5... O-O {[%clk 0:02:57.9]} 6. b3 {[%clk 0:03:06.8]} 6... c5 {[%clk 0:02:55.3]}
7. e3 {[%clk 0:03:06.9]} 7... Nc6 {[%clk 0:02:52.2]} 8. Bb2 {[%clk 0:03:07.8]}
8... d4 {[%clk 0:02:52.7]} 9. exd4 {[%clk 0:03:09.7]} 9... cxd4 {[%clk
0:02:53.4]} 10. Qe2 {[%clk 0:03:11.1]} 10... d3 {[%clk 0:02:47.7]} 11. Qe3
{[%clk 0:02:59.6]} 11... Nb4 {[%clk 0:02:40.7]} 12. Na3 {[%clk 0:03:00.2]} 12...
Qa5 {[%clk 0:02:32.3]} 13. Ne1 {[%clk 0:02:34.4]} 13... Rd8 {[%clk 0:02:27.7]}
14. Nb5 {[%clk 0:02:34.9]} 14... a6 {[%clk 0:02:18.8]} 15. a3 {[%clk 0:02:36.2]}
15... Nc2 {[%clk 0:02:00.2]} 16. Nxc2 {[%clk 0:02:35.6]} 16... axb5 {[%clk
0:02:00.9]} 17. Nb4 {[%clk 0:02:08.7]} 17... bxc4 {[%clk 0:01:47.5]} 18. bxc4
{[%clk 0:02:10.6]} 18... Qh5 {[%clk 0:01:22.2]} 19. h3 {[%clk 0:02:04.1]} 19...
Qe2 {[%clk 0:00:42.5]} 20. Rfe1 {[%clk 0:01:59.3]} 20... Qxe3 {[%clk 0:00:41.3]}
21. Rxe3 {[%clk 0:02:01.2]} 21... Bxb4 {[%clk 0:00:40.4]} 22. axb4 {[%clk
0:02:03]} 22... Rxa1+ {[%clk 0:00:41.4]} 23. Bxa1 {[%clk 0:02:04.9]} 23... b6
{[%clk 0:00:31.6]} 24. Bf1 {[%clk 0:02:04.5]} 24... Ba6 {[%clk 0:00:27]} 25.
Bxf6 {[%clk 0:01:55.3]} 25... gxf6 {[%clk 0:00:26.8]} 26. Rxd3 {[%clk
0:01:56.1]} 26... Rc8 {[%clk 0:00:20.8]} 27. b5 {[%clk 0:01:53.4]} 27... Bb7
{[%clk 0:00:20.6]} 28. Rd6 {[%clk 0:01:49.8]} 28... Bf3 {[%clk 0:00:17.2]} 29.
Rxb6 {[%clk 0:01:48.2]} 29... Rd8 {[%clk 0:00:13.6]} 30. d3 {[%clk 0:01:48.7]}
30... e5 {[%clk 0:00:14.9]} 31. Rxf6 {[%clk 0:01:43.4]} 31... e4 {[%clk
0:00:12.6]} 32. dxe4 {[%clk 0:01:32.9]} 32... Bxe4 {[%clk 0:00:13.7]} 33. Bg2
{[%clk 0:01:29.9]} 33... Rd1+ {[%clk 0:00:12.8]} 34. Kh2 {[%clk 0:01:30.8]}
34... Bd3 {[%clk 0:00:13.9]} 35. Bd5 {[%clk 0:01:29.5]} 35... Kg7 {[%clk
0:00:12.4]} 36. Rxf7+ {[%clk 0:01:30.5]} 36... Kg6 {[%clk 0:00:13.1]} 37. Rf4
{[%clk 0:01:31.3]} 37... Be2 {[%clk 0:00:13.7]} 38. b6 {[%clk 0:01:28.9]} 38...
Rb1 {[%clk 0:00:12.8]} 39. Be4+ {[%clk 0:01:27.5]} 1-0

[Event "*** Titled Tuesday 3|2 Blitz (Late)"]
[Site "Chess.com"]
[Date "2016.11.01"]
[Round "4"]
[White "AlexanderL"]
[Black "Yaacovn"]
[Result "1-0"]
[WhiteElo "2566"]
[BlackElo "2559"]
[TimeControl "180+2"]
[EndTime "17:51:51 PDT"]
[Termination "AlexanderL won on time"]

1. d4 {[%clk 0:03:01.9]} 1... Nf6 {[%clk 0:01:50.4]} 2. c4 {[%clk 0:03:01.2]}
2... e6 {[%clk 0:01:50.9]} 3. g3 {[%clk 0:02:59.2]} 3... d5 {[%clk 0:01:50.7]}
4. Nf3 {[%clk 0:02:59.9]} 4... dxc4 {[%clk 0:01:46.1]} 5. Bg2 {[%clk 0:03:00.7]}
5... Nbd7 {[%clk 0:01:47.6]} 6. O-O {[%clk 0:02:57.5]} 6... a6 {[%clk
0:01:47.6]} 7. a4 {[%clk 0:02:58.5]} 7... Rb8 {[%clk 0:01:47.3]} 8. a5 {[%clk
0:02:53.1]} 8... b5 {[%clk 0:01:31.4]} 9. axb6 {[%clk 0:02:53.7]} 9... cxb6
{[%clk 0:01:32.3]} 10. Bf4 {[%clk 0:02:54.1]} 10... Rb7 {[%clk 0:01:30.1]} 11.
Nc3 {[%clk 0:02:09.8]} 11... Bb4 {[%clk 0:01:22]} 12. Ne5 {[%clk 0:02:07.1]}
12... Nxe5 {[%clk 0:01:10.6]} 13. Qa4+ {[%clk 0:01:43]} 13... Bd7 {[%clk
0:00:43.7]} 14. Qxb4 {[%clk 0:01:42.8]} 14... Nc6 {[%clk 0:00:40.2]} 15. Qxc4
{[%clk 0:01:43.8]} 15... b5 {[%clk 0:00:26]} 16. Qc5 {[%clk 0:01:43.7]} 16...
Qb6 {[%clk 0:00:21.3]} 17. Qxb6 {[%clk 0:01:37]} 17... Rxb6 {[%clk 0:00:23.2]}
18. Bd6 {[%clk 0:01:31.2]} 18... a5 {[%clk 0:00:17.4]} 19. Bc5 {[%clk
0:01:28.5]} 19... Rb8 {[%clk 0:00:18.1]} 20. Rfd1 {[%clk 0:01:01.9]} 20... a4
{[%clk 0:00:17.3]} 21. d5 {[%clk 0:01:00.6]} 21... exd5 {[%clk 0:00:18.1]} 22.
Nxd5 {[%clk 0:01:01.9]} 22... Nxd5 {[%clk 0:00:17.7]} 23. Bxd5 {[%clk
0:01:03.1]} 23... Na5 {[%clk 0:00:13]} 24. Ra3 {[%clk 0:00:48.9]} 24... Be6
{[%clk 0:00:11.9]} 25. Re3 {[%clk 0:00:43]} 25... Rd8 {[%clk 0:00:13.2]} 26. Bb6
{[%clk 0:00:44.4]} 26... Nc4 {[%clk 0:00:12.6]} 27. Bxd8 {[%clk 0:00:34]} 27...
Nxe3 {[%clk 0:00:13.8]} 28. fxe3 {[%clk 0:00:35.1]} 1-0

[Event "*** Titled Tuesday 3|2 Blitz (Late)"]
[Site "Chess.com"]
[Date "2016.11.01"]
[Round "4"]
[White "ZEN-22"]
[Black "Alliswell998"]
[Result "1-0"]
[WhiteElo "2212"]
[BlackElo "2152"]
[TimeControl "180+2"]
[EndTime "17:52:03 PDT"]
[Termination "ZEN-22 won by resignation"]

1. e4 {[%clk 0:03:02]} 1... c5 {[%clk 0:02:54.4]} 2. d4 {[%clk 0:03:02.8]} 2...
cxd4 {[%clk 0:02:55.1]} 3. c3 {[%clk 0:03:04.3]} 3... d3 {[%clk 0:02:55.7]} 4.
Bxd3 {[%clk 0:03:04.9]} 4... Nc6 {[%clk 0:02:57.4]} 5. Nf3 {[%clk 0:03:05.3]}
5... g6 {[%clk 0:02:58.9]} 6. Bc4 {[%clk 0:03:06.2]} 6... Bg7 {[%clk 0:02:59.2]}
7. Qb3 {[%clk 0:03:06.5]} 7... e6 {[%clk 0:02:59.8]} 8. Na3 {[%clk 0:03:05.5]}
8... Nge7 {[%clk 0:02:59.9]} 9. Nb5 {[%clk 0:03:05]} 9... d6 {[%clk 0:02:57.3]}
10. Bf4 {[%clk 0:03:04.9]} 10... e5 {[%clk 0:02:55.4]} 11. Bxf7+ {[%clk
0:03:04.5]} 11... Kf8 {[%clk 0:02:56.6]} 12. Ng5 {[%clk 0:02:53.2]} 12... exf4
{[%clk 0:02:51.3]} 13. Bg8 {[%clk 0:02:53]} 13... Ne5 {[%clk 0:02:46]} 14. Bxh7
{[%clk 0:02:52.4]} 14... Bf6 {[%clk 0:02:36.6]} 15. h4 {[%clk 0:02:47.7]} 15...
Qb6 {[%clk 0:02:21.2]} 16. Rd1 {[%clk 0:02:45.6]} 16... Bd7 {[%clk 0:02:16.1]}
17. Rxd6 {[%clk 0:02:45.2]} 17... Qxb5 {[%clk 0:02:09]} 18. Rxf6+ {[%clk
0:02:45.5]} 18... Kg7 {[%clk 0:02:09.5]} 19. Rf7+ {[%clk 0:02:43.9]} 19... Kh6
{[%clk 0:02:10.5]} 20. Rxe7 {[%clk 0:02:37.7]} 20... Nd3+ {[%clk 0:02:10.8]} 21.
Kd2 {[%clk 0:02:37.7]} 21... Nxf2 {[%clk 0:02:05.1]} 22. Qxb5 {[%clk 0:02:30.1]}
22... Bxb5 {[%clk 0:02:05.8]} 23. Rh2 {[%clk 0:02:21]} 23... Rad8+ {[%clk
0:02:02.7]} 24. Kc2 {[%clk 0:02:22]} 24... Ng4 {[%clk 0:02:00.6]} 25. Nf7+
{[%clk 0:02:17.2]} 25... Kh5 {[%clk 0:01:46.5]} 26. Nxd8 {[%clk 0:02:15.1]}
26... Nxh2 {[%clk 0:01:31.2]} 27. Ne6 {[%clk 0:02:13]} 27... Kxh4 {[%clk
0:01:26.3]} 28. Nxf4 {[%clk 0:02:09.5]} 28... Kg3 {[%clk 0:01:21.8]} 29. Nxg6
{[%clk 0:02:09.6]} 29... Rd8 {[%clk 0:01:23.2]} 30. Ne5 {[%clk 0:02:09.4]} 30...
Kxg2 {[%clk 0:01:21.8]} 31. Rxb7 {[%clk 0:02:08]} 31... Ba4+ {[%clk 0:01:17.1]}
32. b3 {[%clk 0:02:09]} 32... Be8 {[%clk 0:01:18.6]} 33. Rg7+ {[%clk 0:02:09.6]}
33... Kf2 {[%clk 0:01:18.2]} 34. Rxa7 {[%clk 0:02:11.5]} 34... Nf1 {[%clk
0:01:14.9]} 35. Nd3+ {[%clk 0:02:11.3]} 35... Ke2 {[%clk 0:01:15.2]} 36. e5
{[%clk 0:02:11.3]} 36... Ne3+ {[%clk 0:01:14]} 37. Kb2 {[%clk 0:02:12.5]} 37...
Nd1+ {[%clk 0:01:12.3]} 38. Ka3 {[%clk 0:02:12.7]} 38... Nxc3 {[%clk 0:01:13]}
39. Ra5 {[%clk 0:02:09.3]} 39... Rd4 {[%clk 0:01:08.5]} 40. e6 {[%clk
0:02:06.7]} 40... Kd2 {[%clk 0:00:59.3]} 41. Re5 {[%clk 0:01:58]} 41... Kc2
{[%clk 0:00:47.7]} 42. Nb2+ {[%clk 0:01:51.3]} 42... Kc1 {[%clk 0:00:36.6]} 43.
Nc4 {[%clk 0:01:49.3]} 43... Nd5 {[%clk 0:00:20.2]} 44. Re1+ {[%clk 0:01:47.1]}
44... Rd1 {[%clk 0:00:19.6]} 45. Rxd1+ {[%clk 0:01:48.1]} 45... Kxd1 {[%clk
0:00:21.5]} 46. Nd6 {[%clk 0:01:49.2]} 46... Bc6 {[%clk 0:00:20.5]} 47. Be4
{[%clk 0:01:49.3]} 47... Ne7 {[%clk 0:00:15.4]} 48. Bxc6 {[%clk 0:01:49.8]}
48... Nxc6 {[%clk 0:00:17.3]} 49. b4 {[%clk 0:01:51.5]} 49... Kc2 {[%clk
0:00:18.1]} 50. b5 {[%clk 0:01:52.5]} 50... Nd4 {[%clk 0:00:18.8]} 51. e7 {[%clk
0:01:52]} 51... Kc3 {[%clk 0:00:20.7]} 52. e8=Q {[%clk 0:01:50.1]} 1-0

[Event "*** Titled Tuesday 3|2 Blitz (Late)"]
[Site "Chess.com"]
[Date "2016.11.01"]
[Round "4"]
[White "g2_g3"]
[Black "SwiftyMcBishop"]
[Result "0-1"]
[WhiteElo "1845"]
[BlackElo "2103"]
[TimeControl "180+2"]
[EndTime "17:52:14 PDT"]
[Termination "SwiftyMcBishop won by resignation"]

1. d4 {[%clk 0:03:01.9]} 1... d5 {[%clk 0:03:00.1]} 2. Nf3 {[%clk 0:03:02.7]}
2... Nf6 {[%clk 0:03:00.9]} 3. e3 {[%clk 0:03:03.6]} 3... c6 {[%clk 0:03:01.9]}
4. Bd3 {[%clk 0:03:04]} 4... e6 {[%clk 0:03:01.4]} 5. Nbd2 {[%clk 0:03:03.9]}
5... Bd6 {[%clk 0:03:03]} 6. Ne5 {[%clk 0:03:01.1]} 6... Nbd7 {[%clk 0:03:03.4]}
7. f4 {[%clk 0:03:01.9]} 7... Qe7 {[%clk 0:03:02.7]} 8. O-O {[%clk 0:03:02.2]}
8... c5 {[%clk 0:03:01.3]} 9. c3 {[%clk 0:03:03.1]} 9... h6 {[%clk 0:02:52.3]}
10. Qf3 {[%clk 0:03:02.9]} 10... a6 {[%clk 0:02:45.7]} 11. g4 {[%clk 0:02:52.2]}
11... b6 {[%clk 0:02:22.7]} 12. Nc6 {[%clk 0:02:31.7]} 12... Qf8 {[%clk
0:02:23.3]} 13. e4 {[%clk 0:02:25.9]} 13... dxe4 {[%clk 0:02:15.5]} 14. Nxe4
{[%clk 0:02:25.6]} 14... Bb7 {[%clk 0:02:06.8]} 15. Ne5 {[%clk 0:02:20.1]} 15...
O-O-O {[%clk 0:01:19.5]} 16. Nxd6+ {[%clk 0:02:05]} 16... Qxd6 {[%clk
0:01:19.6]} 17. Bxa6 {[%clk 0:02:04.9]} 17... Bxa6 {[%clk 0:01:09.1]} 18. Qa8+
{[%clk 0:02:05]} 18... Nb8 {[%clk 0:01:06]} 19. Nxf7 {[%clk 0:01:56.2]} 19...
Qd5 {[%clk 0:00:38.2]} 20. Qxd5 {[%clk 0:01:48.2]} 20... exd5 {[%clk 0:00:39]}
21. Nxh8 {[%clk 0:01:46.9]} 21... Bxf1 {[%clk 0:00:38.4]} 22. Nf7 {[%clk
0:01:37.6]} 22... Rf8 {[%clk 0:00:39.5]} 23. Nxh6 {[%clk 0:01:30]} 23... gxh6
{[%clk 0:00:34.3]} 24. Kxf1 {[%clk 0:01:29.8]} 24... Nxg4 {[%clk 0:00:35.7]} 25.
h3 {[%clk 0:01:28.5]} 25... Nf6 {[%clk 0:00:36]} 26. Be3 {[%clk 0:01:25.1]}
26... c4 {[%clk 0:00:35.2]} 27. Kf2 {[%clk 0:01:22.7]} 27... Nc6 {[%clk
0:00:35]} 28. Rg1 {[%clk 0:01:22]} 28... Rg8 {[%clk 0:00:34.6]} 29. Rxg8+ {[%clk
0:01:22.1]} 29... Nxg8 {[%clk 0:00:36.5]} 30. Kf3 {[%clk 0:01:23.3]} 30... Kd7
{[%clk 0:00:37.2]} 31. Kg4 {[%clk 0:01:24.4]} 31... Ke6 {[%clk 0:00:34.3]} 32.
f5+ {[%clk 0:01:25.2]} 32... Kf6 {[%clk 0:00:35.1]} 33. h4 {[%clk 0:01:14.7]}
33... Nce7 {[%clk 0:00:35]} 34. Bf4 {[%clk 0:01:11.4]} 34... Nxf5 {[%clk
0:00:35.2]} 35. Be5+ {[%clk 0:01:12]} 35... Ke6 {[%clk 0:00:36.1]} 36. b3 {[%clk
0:01:08.3]} 36... Ne3+ {[%clk 0:00:34.9]} 37. Kf3 {[%clk 0:01:07.5]} 37... Nd1
{[%clk 0:00:35.8]} 38. bxc4 {[%clk 0:01:07.9]} 38... dxc4 {[%clk 0:00:36.1]} 39.
Bg7 {[%clk 0:01:08.8]} 39... Nxc3 {[%clk 0:00:35.6]} 40. Ke3 {[%clk 0:00:59.6]}
40... Kd5 {[%clk 0:00:35.8]} 41. Kd2 {[%clk 0:00:59.5]} 41... Nxa2 {[%clk
0:00:36.1]} 42. Kc2 {[%clk 0:00:54.4]} 42... Nb4+ {[%clk 0:00:36.9]} 43. Kc3
{[%clk 0:00:55.6]} 43... Nc6 {[%clk 0:00:38.1]} 44. h5 {[%clk 0:00:55.9]} 44...
b5 {[%clk 0:00:37.9]} 0-1